bitfinex/quotes_BTCUSD_20220226
["timestamp","ask_amount","ask_price","bid_price","bid_amount"]
[1645903026841,0.20712318,39315.0,39311.0,0.89033834]
[1645903027042,0.00043876,39316.0,39311.0,0.89033834]
[1645903027245,0.09719082,39318.0,39311.0,0.82672534]
[1645903027658,0.00043877,39315.0,39311.0,0.82672534]
[1645903028046,0.00043877,39315.0,39313.0,0.21257758]
[1645903028248,0.00043877,39315.0,39314.0,0.34953226]
[1645903028446,0.09719082,39318.0,39313.0,0.27618058]
[1645903028898,0.00043876,39316.0,39313.0,0.27618058]
[1645903029495,0.00043876,39316.0,39313.0,0.063603]
[1645903029700,0.09719082,39318.0,39313.0,0.06522224]
[1645903029998,0.00043876,39316.0,39315.0,0.12720412]
[1645903030600,0.00043876,39316.0,39315.0,0.06360212]
[1645903031009,0.09719082,39318.0,39315.0,0.06360212]
[1645903031200,0.09719082,39318.0,39316.0,0.063605]
[1645903031201,0.00043875,39317.0,39316.0,0.063605]
[1645903031399,0.00043875,39317.0,39315.0,0.06360212]
[1645903031799,0.00043875,39317.0,39315.0,0.27682996]
[1645903032001,0.09719082,39318.0,39315.0,0.06360212]
[1645903032203,0.09219082,39318.0,39316.0,0.063604]
[1645903032400,0.09262956,39318.0,39316.0,0.063604]
[1645903032658,0.25,39317.0,39316.0,0.063604]
[1645903033460,0.25,39317.0,39316.0,0.127202]
[1645903034261,0.25,39317.0,39316.0,0.063604]
[1645903035061,0.25,39317.0,39315.0,0.00160882]
[1645903037496,0.48219016,39317.0,39315.0,0.00160882]
[1645903038195,0.36328504,39317.0,39315.0,0.00160882]
[1645903039191,0.36328504,39317.0,39312.0,0.0636107]
[1645903039794,0.21486533,39315.0,39312.0,0.0636107]
[1645903039998,0.21486533,39315.0,39311.0,0.76311]
[1645903040451,0.379339,39314.0,39311.0,0.76311]
[1645903041849,0.430239,39314.0,39311.0,0.76311]
[1645903042049,0.43067798,39314.0,39311.0,0.76311]
[1645903042451,0.379339,39312.0,39311.0,0.76311]
[1645903043457,0.379339,39312.0,39311.0,0.35434993]
[1645903043458,0.98666376,39312.0,39311.0,0.35434993]
[1645903043651,0.84682376,39312.0,39311.0,0.35434993]
[1645903043897,0.631989,39312.0,39311.0,0.35434993]
[1645903044698,0.93729257,39312.0,39311.0,0.26434993]
[1645903044902,0.631989,39312.0,39311.0,0.26434993]
[1645903045098,0.621829,39312.0,39311.0,0.26434993]
[1645903045298,0.631989,39312.0,39311.0,0.26434993]
[1645903046699,0.621829,39312.0,39311.0,0.26434993]
[1645903047503,0.621829,39312.0,39311.0,0.21434993]
[1645903048751,0.521829,39312.0,39311.0,0.21434993]
[1645903048952,0.430239,39312.0,39311.0,0.21434993]
[1645903049353,0.430239,39312.0,39311.0,0.21595796]
[1645903051995,0.501229,39312.0,39311.0,0.21595796]
[1645903052192,0.551229,39312.0,39311.0,0.21595796]
[1645903053993,0.551229,39312.0,39311.0,0.21434993]
[1645903054193,0.601229,39312.0,39311.0,0.21434993]
[1645903054594,0.622499,39312.0,39311.0,0.21434993]
[1645903054793,1.403799,39312.0,39311.0,0.21434993]
[1645903055440,1.413959,39312.0,39311.0,0.21434993]
[1645903055841,1.392689,39312.0,39311.0,0.21434993]
[1645903056242,1.592689,39312.0,39311.0,0.21434993]
[1645903056448,1.542689,39312.0,39311.0,0.21434993]
[1645903057744,1.552879,39312.0,39311.0,0.21434993]
[1645903057948,1.402879,39312.0,39311.0,0.21434993]
[1645903058147,1.392689,39312.0,39311.0,0.21434993]
[1645903058348,0.611389,39312.0,39311.0,0.21434993]
[1645903058545,0.440399,39312.0,39311.0,0.21434993]
[1645903058746,0.430239,39312.0,39311.0,0.21434993]
[1645903059194,0.379339,39312.0,39311.0,0.21434993]
[1645903065047,0.579339,39312.0,39311.0,0.21434993]
[1645903065247,1.411539,39312.0,39311.0,0.21434993]
[1645903065446,0.630239,39312.0,39311.0,0.21434993]
[1645903066489,0.630239,39312.0,39309.0,0.00160799]
[1645903066695,0.24757864,39311.0,39309.0,0.00160799]
[1645903066891,0.379339,39310.0,39309.0,0.00160799]
[1645903068494,1.160639,39310.0,39309.0,0.00160799]
[1645903068694,0.379339,39310.0,39309.0,0.00160799]
[1645903069592,0.379339,39310.0,39309.0,0.00223136]
[1645903070245,0.430239,39310.0,39309.0,0.00223136]
[1645903070849,1.311539,39310.0,39309.0,0.00223136]
[1645903071047,0.430239,39310.0,39309.0,0.00223136]
[1645903071251,0.530239,39310.0,39309.0,0.00213591]
[1645903071846,0.430239,39310.0,39309.0,0.00213591]
[1645903072049,1.311539,39310.0,39309.0,0.00213591]
[1645903072647,0.530239,39310.0,39309.0,0.00213591]
[1645903073149,1.311539,39310.0,39309.0,0.00213591]
[1645903073999,1.321729,39310.0,39309.0,0.00213591]
[1645903075710,1.311539,39310.0,39309.0,0.00213591]
[1645903075904,1.413339,39310.0,39309.0,0.00213591]
[1645903077501,1.423499,39310.0,39309.0,0.00213591]
[1645903078942,1.321699,39310.0,39309.0,0.00213591]
[1645903080550,0.440399,39310.0,39309.0,0.00213591]
[1645903080748,0.389499,39310.0,39309.0,0.00213591]
[1645903080948,0.379339,39310.0,39309.0,0.00213591]
[1645903084597,0.379339,39310.0,39309.0,0.0014613]
[1645903086262,0.37922379,39310.0,39309.0,0.0014613]
[1645903088068,0.37922379,39310.0,39309.0,0.0011613]
[1645903089292,0.37922379,39310.0,39309.0,0.00220169]
[1645903090293,0.37891271,39310.0,39309.0,0.00220169]
[1645903091294,0.37790609,39310.0,39309.0,0.00220169]
[1645903093745,0.37290609,39310.0,39309.0,0.00220169]
[1645903100240,0.57733308,39311.0,39310.0,0.20066245]
[1645903100841,0.57689564,39311.0,39310.0,0.20066245]
[1645903101741,0.379317,39311.0,39310.0,0.20066245]
[1645903102347,0.00043744,39312.0,39310.0,0.20066245]
[1645903103243,0.35840278,39316.0,39310.0,0.20066245]
[1645903103244,0.379317,39315.0,39310.0,0.20066245]
[1645903103747,0.00043743,39313.0,39310.0,0.20066245]
[1645903104398,0.00043743,39313.0,39310.0,0.20000219]
[1645903104598,0.379317,39315.0,39310.0,0.20000219]
[1645903104802,0.00043743,39313.0,39310.0,0.20000219]
[1645903105801,0.379317,39315.0,39310.0,0.19500219]
[1645903106004,0.00043743,39313.0,39310.0,0.19500219]
[1645903107006,0.379317,39315.0,39310.0,0.19500219]
[1645903107203,0.00043743,39313.0,39310.0,0.19500219]
[1645903108045,1.160617,39315.0,39310.0,0.19500219]
[1645903108448,0.00043743,39313.0,39310.0,0.19500219]
[1645903108646,0.379317,39312.0,39310.0,0.19500219]
[1645903114997,0.379317,39312.0,39311.0,0.00144053]
[1645903119809,0.379317,39312.0,39310.0,0.19500219]
[1645903121008,0.379317,39312.0,39310.0,0.19000219]
[1645903129099,0.00043743,39313.0,39311.0,0.7560834]
[1645903129303,0.00043743,39313.0,39312.0,0.404897]
[1645903129699,0.010189,39314.0,39312.0,0.404897]
[1645903130159,0.45676131,39320.0,39318.0,0.29458845]
[1645903130358,0.45676131,39320.0,39318.0,0.35818645]
[1645903130965,0.453564,39320.0,39318.0,0.29458845]
[1645903131161,0.55816335,39319.0,39318.0,0.29458845]
[1645903132066,0.72931837,39319.0,39318.0,0.29458845]
[1645903133069,1.08006089,39319.0,39318.0,0.29458845]
[1645903133903,1.33006089,39319.0,39318.0,0.29458845]
[1645903134103,0.97931837,39319.0,39318.0,0.29458845]
[1645903134503,1.33006089,39319.0,39318.0,0.29458845]
[1645903135107,1.33006089,39319.0,39318.0,0.29602298]
[1645903137745,0.80816335,39319.0,39318.0,0.29602298]
[1645903137944,1.15890587,39319.0,39318.0,0.29602298]
[1645903139346,1.15890587,39319.0,39318.0,0.29458845]
[1645903139851,1.13390587,39319.0,39318.0,0.29458845]
[1645903140449,0.78316335,39319.0,39318.0,0.29458845]
[1645903140647,1.13240591,39319.0,39318.0,0.28958845]
[1645903141398,0.78316335,39319.0,39318.0,0.28958845]
[1645903142199,1.13240591,39319.0,39318.0,0.28958845]
[1645903142403,1.33416829,39319.0,39318.0,0.28958845]
[1645903142802,1.38096829,39319.0,39318.0,0.28958845]
[1645903143400,1.49115629,39319.0,39318.0,0.28958845]
[1645903143602,1.49024839,39319.0,39318.0,0.28958845]
[1645903143801,1.48006039,39319.0,39318.0,0.28958845]
[1645903145006,1.47506039,39319.0,39318.0,0.28958845]
[1645903146250,0.92405545,39319.0,39318.0,0.28958845]
[1645903147355,0.99772136,39319.0,39318.0,0.28958845]
[1645903147958,0.98753336,39319.0,39318.0,0.28958845]
[1645903148650,1.33677592,39319.0,39318.0,0.28958845]
[1645903149303,0.82996335,39319.0,39318.0,0.28958845]
[1645903150302,1.04532817,39319.0,39318.0,0.28958845]
[1645903152760,0.82996335,39319.0,39318.0,0.28958845]
[1645903155260,0.84015135,39319.0,39318.0,0.28958845]
[1645903155456,0.82996335,39319.0,39318.0,0.28958845]
[1645903156057,1.17920591,39319.0,39318.0,0.28958845]
[1645903156507,0.82996335,39319.0,39318.0,0.28958845]
[1645903157310,0.87996335,39319.0,39318.0,0.28958845]
[1645903158508,1.22920591,39319.0,39318.0,0.28958845]
[1645903159112,1.23939291,39319.0,39318.0,0.28958845]
[1645903159609,1.22920591,39319.0,39318.0,0.28958845]
[1645903160253,0.87996335,39319.0,39318.0,0.28958845]
[1645903162355,1.22920591,39319.0,39318.0,0.28958845]
[1645903162559,2.06050591,39319.0,39318.0,0.28958845]
[1645903163063,2.08088191,39319.0,39318.0,0.28958845]
[1645903163456,0.7813,39317.0,39310.0,0.19000219]
[1645903163658,0.7813,39315.0,39310.0,0.19000219]
[1645903163904,1.60779736,39314.0,39310.0,0.19000219]
[1645903164104,0.0468,39313.0,39310.0,0.19000219]
[1645903164305,0.379308,39312.0,39310.0,0.19000219]
[1645903164505,0.6152091,39311.0,39310.0,0.19000219]
[1645903164708,0.6652091,39311.0,39310.0,0.19000219]
[1645903165306,0.6204091,39311.0,39310.0,0.19000219]
[1645903165506,0.381308,39311.0,39310.0,0.19000219]
[1645903165711,0.381308,39311.0,39310.0,0.16500219]
[1645903166306,0.01016,39312.0,39311.0,0.19222588]
[1645903166505,0.37712288,39312.0,39311.0,0.19222588]
[1645903171401,0.62712288,39312.0,39311.0,0.19222588]
[1645903171600,0.62712288,39312.0,39311.0,0.18722588]
[1645903175248,0.60512288,39312.0,39311.0,0.18722588]
[1645903177750,0.70512288,39312.0,39311.0,0.18722588]
[1645903178156,0.60512288,39312.0,39311.0,0.18722588]
[1645903178351,0.65192288,39312.0,39311.0,0.18722588]
[1645903179603,0.60512288,39312.0,39311.0,0.18722588]
[1645903182409,0.65602288,39312.0,39311.0,0.18722588]
[1645903184254,1.39262288,39312.0,39311.0,0.18722588]
[1645903184452,2.21492288,39312.0,39311.0,0.18722588]
[1645903184651,2.38698696,39312.0,39311.0,0.18722588]
[1645903185051,2.38198696,39312.0,39311.0,0.18722588]
[1645903185651,2.35114696,39312.0,39311.0,0.18722588]
[1645903185852,2.35114696,39312.0,39311.0,0.05815867]
[1645903186515,1.56984696,39312.0,39311.0,0.05815867]
[1645903186704,1.58003796,39312.0,39311.0,0.05815867]
[1645903187103,1.56984696,39312.0,39311.0,0.05815867]
[1645903187503,2.35114696,39312.0,39311.0,0.05815867]
[1645903189307,2.34114696,39312.0,39311.0,0.05815867]
[1645903190448,2.35133796,39312.0,39311.0,0.05815867]
[1645903190853,2.7381056,39312.0,39311.0,0.05815867]
[1645903191251,2.7381056,39312.0,39294.0,8.4263477]
[1645903191252,0.19492614,39297.0,39294.0,8.4263477]
[1645903191452,0.379316,39296.0,39294.0,8.4263477]
[1645903191655,0.0509,39295.0,39294.0,8.4263477]
[1645903191850,0.62599878,39295.0,39294.0,8.4263477]
[1645903193558,0.430282,39295.0,39294.0,8.4263477]
[1645903196301,0.379387,39296.0,39294.0,8.4263477]
[1645903196501,0.430287,39296.0,39294.0,8.4263477]
[1645903196709,0.530287,39296.0,39294.0,8.4263477]
[1645903197305,1.027869,39295.0,39294.0,8.4263477]
[1645903197503,0.297469,39295.0,39294.0,8.4263477]
[1645903199858,1.17398228,39295.0,39294.0,8.4263477]
[1645903200050,1.9555498,39295.0,39294.0,8.4263477]
[1645903200251,1.88749468,39295.0,39294.0,8.4263477]
[1645903200451,1.89765468,39295.0,39294.0,8.4263477]
[1645903201403,1.89865468,39295.0,39294.0,8.4263477]
[1645903202606,1.11635468,39295.0,39294.0,8.4263477]
[1645903202906,0.944229,39295.0,39294.0,8.4263477]
[1645903203108,0.246569,39295.0,39294.0,8.4263477]
[1645903203405,0.248569,39295.0,39294.0,8.4263477]
[1645903203606,0.248569,39295.0,39294.0,8.5878032]
[1645903203806,0.248569,39295.0,39294.0,8.81295785]
[1645903204205,0.248569,39295.0,39294.0,8.65150235]
[1645903204605,0.246569,39295.0,39294.0,8.65150235]
[1645903205251,0.246569,39295.0,39294.0,8.87247288]
[1645903205453,0.246569,39295.0,39294.0,8.65150235]
[1645903206556,0.346569,39295.0,39294.0,8.4263477]
[1645903210708,0.69488562,39295.0,39294.0,8.4263477]
[1645903210909,1.64832433,39295.0,39294.0,8.4263477]
[1645903211110,1.65848433,39295.0,39294.0,8.4263477]
[1645903211615,2.45237392,39295.0,39294.0,6.4590982]
[1645903211809,2.48392007,39295.0,39294.0,4.03895492]
[1645903212008,2.48392007,39295.0,39294.0,3.12305492]
[1645903212215,2.98392007,39295.0,39294.0,3.12305492]
[1645903212409,2.98392007,39295.0,39294.0,1.88805492]
[1645903212650,3.00944007,39295.0,39294.0,1.85805492]
[1645903212852,3.17806164,39295.0,39294.0,1.85805492]
[1645903213262,0.17558,39292.0,39271.0,0.01]
[1645903213457,1.25,39294.0,39271.0,0.01]
[1645903213458,0.7813,39280.0,39271.0,0.01]
[1645903213657,0.8313,39278.0,39271.0,0.01]
[1645903213858,1.027869,39276.0,39271.0,0.01]
[1645903214054,0.379387,39273.0,39271.0,0.005]
[1645903214257,0.28738895,39272.0,39271.0,0.005]
[1645903214453,0.58395795,39272.0,39271.0,0.005]
[1645903215455,0.348469,39272.0,39271.0,0.0045456]
[1645903215659,0.298469,39272.0,39271.0,0.0045456]
[1645903215857,0.247569,39272.0,39271.0,0.0045456]
[1645903216708,0.246569,39272.0,39271.0,0.0045456]
[1645903217513,0.248569,39272.0,39271.0,0.0045456]
[1645903218409,0.44766829,39272.0,39271.0,0.0045456]
[1645903218609,0.44566829,39272.0,39271.0,0.0045456]
[1645903219011,0.81150967,39272.0,39271.0,0.0045456]
[1645903219213,0.86150967,39272.0,39271.0,0.0045456]
[1645903219414,0.91340967,39272.0,39271.0,0.0045456]
[1645903219612,0.92357967,39272.0,39271.0,0.0045456]
[1645903220258,0.368839,39272.0,39271.0,0.0045456]
[1645903220457,0.358669,39272.0,39271.0,0.0045456]
[1645903220656,0.357669,39272.0,39271.0,0.0045456]
[1645903221257,0.306769,39272.0,39271.0,0.0045456]
[1645903221458,0.307769,39272.0,39271.0,0.0045456]
[1645903221658,0.547569,39272.0,39271.0,0.0045456]
[1645903222662,0.546569,39272.0,39271.0,0.0045456]
[1645903223362,0.548569,39272.0,39271.0,0.0045456]
[1645903224615,0.546569,39272.0,39271.0,0.0045456]
[1645903224816,0.52679497,39272.0,39271.0,0.0045456]
[1645903225416,0.52879497,39272.0,39271.0,0.0045456]
[1645903226215,0.57879497,39272.0,39271.0,0.0045456]
[1645903226415,0.05471479,39272.0,39271.0,0.0045456]
[1645903226617,0.06288479,39272.0,39271.0,0.0045456]
[1645903226815,0.01288479,39272.0,39271.0,0.0045456]
[1645903227416,0.01488479,39272.0,39271.0,0.0045456]
[1645903228650,0.37753327,39272.0,39271.0,0.0045456]
[1645903228850,0.42753327,39272.0,39271.0,0.0045456]
[1645903229452,0.42953327,39272.0,39271.0,0.0045456]
[1645903229652,1.26173327,39272.0,39271.0,0.0045456]
[1645903230053,1.26173327,39272.0,39270.0,0.0295456]
[1645903230054,0.7813,39271.0,39270.0,0.0295456]
[1645903230255,1.25151848,39271.0,39270.0,0.02981404]
[1645903230463,1.25790807,39271.0,39270.0,0.02981404]
[1645903230851,1.25790807,39271.0,39270.0,1.404e-05]
[1645903231055,1.85790807,39271.0,39270.0,1.404e-05]
[1645903231255,1.85790807,39271.0,39257.0,0.2869]
[1645903231256,0.02558,39265.0,39257.0,0.2869]
[1645903231511,0.870607,39263.0,39251.0,0.1184]
[1645903231718,0.4640245,39262.0,39251.0,0.1184]
[1645903231907,0.20503875,39255.0,39251.0,0.1184]
[1645903232106,0.20503875,39255.0,39248.0,0.1]
[1645903232307,0.20503875,39255.0,39245.0,0.1]
[1645903232909,0.20503875,39255.0,39246.0,0.1]
[1645903233310,0.20503875,39255.0,39246.0,0.18687926]
[1645903233512,0.45503875,39255.0,39243.0,0.1198]
[1645903233716,0.3631245,39254.0,39242.0,0.14718]
[1645903233914,0.45503875,39255.0,39242.0,0.14718]
[1645903233915,0.45503875,39255.0,39249.0,0.00043598]
[1645903235014,0.45503875,39255.0,39250.0,0.00043597]
[1645903235250,0.45503875,39255.0,39247.0,0.19712062]
[1645903235851,0.45503875,39255.0,39248.0,0.15959235]
[1645903236048,0.45503875,39255.0,39247.0,0.19712062]
[1645903236447,0.25,39255.0,39247.0,0.19712062]
[1645903237450,0.1940785,39253.0,39247.0,0.19712062]
[1645903237855,0.05,39254.0,39247.0,0.29712062]
[1645903238257,0.05,39254.0,39247.0,0.19712062]
[1645903238652,0.05,39254.0,39248.0,0.00043579]
[1645903238898,0.05,39254.0,39248.0,0.22100263]
[1645903239303,0.05,39254.0,39248.0,0.00043579]
[1645903239700,0.05,39254.0,39244.0,0.1]
[1645903239901,0.05,39254.0,39248.0,0.00040903]
[1645903240906,0.05,39254.0,39243.0,0.30187542]
[1645903241104,0.4131245,39254.0,39248.0,0.00040903]
[1645903241305,0.05,39254.0,39248.0,0.00040903]
[1645903242102,0.05,39254.0,39247.0,0.1]
[1645903242303,0.05,39254.0,39248.0,0.00040903]
[1645903243250,0.05,39254.0,39243.0,0.19287542]
[1645903243451,0.05,39254.0,39248.0,0.00040903]
[1645903243650,0.05,39254.0,39249.0,0.20403729]
[1645903245348,0.05,39254.0,39248.0,0.00041084]
[1645903245649,0.05,39254.0,39244.0,0.003]
[1645903245848,0.3631245,39253.0,39248.0,0.00041083]
[1645903246052,0.05,39254.0,39248.0,0.00041083]
[1645903246249,0.06,39254.0,39248.0,0.00041083]
[1645903246906,0.06,39254.0,39244.0,0.17384426]
[1645903247106,0.06,39254.0,39248.0,0.00041083]
[1645903248008,0.05,39254.0,39247.0,0.17070887]
[1645903248207,0.05,39254.0,39248.0,0.00041071]
[1645903249209,0.22403202,39250.0,39244.0,0.17384426]
[1645903249610,0.20845562,39253.0,39243.0,0.003]
[1645903250012,0.25845562,39253.0,39242.0,0.1146]
[1645903250257,0.30845562,39253.0,39242.0,0.1146]
[1645903250460,0.23364903,39248.0,39242.0,0.1146]
[1645903250857,0.23364903,39248.0,39241.0,0.0054021]
[1645903251758,0.23364903,39248.0,39243.0,0.00043583]
[1645903252757,0.23364903,39248.0,39241.0,0.0054021]
[1645903252959,0.23364903,39248.0,39244.0,0.00043582]
[1645903254000,0.23364903,39248.0,39241.0,0.0054021]
[1645903254196,0.23364903,39248.0,39244.0,0.00043582]
[1645903254999,0.28364903,39248.0,39244.0,0.00043582]
[1645903255199,0.28364903,39248.0,39241.0,0.0054021]
[1645903255200,0.33364903,39248.0,39241.0,0.0054021]
[1645903255399,0.33364903,39248.0,39244.0,0.00043582]
[1645903255400,0.36327776,39247.0,39244.0,0.00043582]
[1645903255600,0.05,39246.0,39244.0,0.00043582]
[1645903255899,0.41327776,39245.0,39244.0,0.00043582]
[1645903256299,0.19758427,39248.0,39244.0,0.00043582]
[1645903256503,0.19758427,39248.0,39241.0,0.0054021]
[1645903256504,0.24758427,39248.0,39241.0,0.0054021]
[1645903256701,0.24758427,39248.0,39243.0,0.00043583]
[1645903257499,0.24858427,39248.0,39243.0,0.00043583]
[1645903257757,0.24858427,39248.0,39241.0,0.0054021]
[1645903257957,0.24858427,39248.0,39244.0,0.00043582]
[1645903258352,0.34858427,39248.0,39244.0,0.00043582]
[1645903258953,0.34858427,39248.0,39241.0,0.0054021]
[1645903258954,0.34758427,39248.0,39241.0,0.0054021]
[1645903259157,0.34758427,39248.0,39244.0,0.00026779]
[1645903259553,0.34858427,39248.0,39244.0,0.00026779]
[1645903259955,0.176,39248.0,39244.0,0.00026779]
[1645903260153,0.176,39248.0,39241.0,0.0054021]
[1645903260353,0.176,39248.0,39244.0,0.00043562]
[1645903260754,0.175,39248.0,39244.0,0.00043562]
[1645903261152,0.175,39248.0,39243.0,0.13472047]
[1645903261402,0.175,39248.0,39244.0,0.00043562]
[1645903261605,0.176,39248.0,39244.0,0.00043562]
[1645903262501,0.176,39248.0,39243.0,0.13472047]
[1645903262702,0.175,39248.0,39243.0,0.13472047]
[1645903263703,0.176,39248.0,39243.0,0.32252867]
[1645903263903,0.176,39248.0,39243.0,0.13472047]
[1645903264508,0.176,39248.0,39243.0,0.12972047]
[1645903264705,0.175,39248.0,39243.0,0.12972047]
[1645903264906,0.175,39248.0,39243.0,0.21987589]
[1645903265161,0.01018,39251.0,39244.0,0.32075045]
[1645903265358,0.00043553,39252.0,39243.0,0.24545589]
[1645903265559,0.00043553,39252.0,39244.0,0.122]
[1645903265560,0.50043553,39252.0,39244.0,0.122]
[1645903265758,0.50043553,39252.0,39244.0,0.14758]
[1645903266161,0.5,39252.0,39244.0,0.14758]
[1645903266360,0.50043555,39252.0,39247.0,0.379532]
[1645903266559,0.50043555,39252.0,39248.0,0.02558]
[1645903266560,0.00043555,39252.0,39248.0,0.02558]
[1645903266961,0.00043555,39252.0,39251.0,0.405112]
[1645903267165,5.55e-06,39252.0,39251.0,1.45180682]
[1645903267362,0.065,39271.0,39265.0,0.23168339]
[1645903267363,0.23724645,39271.0,39265.0,0.23168339]
[1645903267560,0.5,39270.0,39265.0,0.23168339]
[1645903267762,0.17506711,39269.0,39259.0,0.35919482]
[1645903267970,0.17006711,39269.0,39260.0,0.0509]
[1645903268162,0.17006711,39269.0,39256.0,0.36936482]
[1645903268163,0.17006711,39269.0,39257.0,0.0509]
[1645903268362,0.17006711,39269.0,39258.0,0.35919482]
[1645903268761,0.22714786,39263.0,39258.0,0.35919482]
[1645903269008,0.22714786,39263.0,39255.0,0.1206]
[1645903269209,0.27714786,39263.0,39255.0,0.0509]
[1645903269810,0.05,39261.0,39253.0,0.2634]
[1645903270008,0.05043568,39261.0,39254.0,0.0509]
[1645903270207,0.05043568,39261.0,39253.0,0.0509]
[1645903271005,0.05,39261.0,39253.0,0.0509]
[1645903271206,0.00043569,39259.0,39253.0,0.0509]
[1645903272311,0.05,39261.0,39253.0,0.0509]
[1645903272511,0.0004357,39258.0,39252.0,0.22530233]
[1645903272752,0.22600058,39257.0,39249.0,0.36375414]
[1645903273551,0.00043572,39255.0,39249.0,0.36375414]
[1645903273752,0.00043572,39255.0,39249.0,0.01017]
[1645903274553,0.32600058,39257.0,39245.0,0.59010309]
[1645903274753,0.00043572,39254.0,39246.0,0.00043581]
[1645903274957,0.00043572,39254.0,39251.0,0.21835705]
[1645903275153,0.00043572,39254.0,39246.0,0.35401995]
[1645903275352,0.00043572,39254.0,39246.0,0.00043581]
[1645903275551,0.00043572,39254.0,39246.0,0.00243581]
[1645903275753,0.01018,39256.0,39246.0,0.002]
[1645903275953,0.00043571,39254.0,39246.0,0.0280158]
[1645903276254,0.00043571,39254.0,39248.0,0.20810668]
[1645903276904,0.01018,39256.0,39248.0,0.20810668]
[1645903277101,0.00043572,39254.0,39246.0,0.35401994]
[1645903277302,0.00043572,39254.0,39246.0,0.0004358]
[1645903278102,0.21665032,39251.0,39245.0,0.59010309]
[1645903278302,0.21665032,39251.0,39246.0,0.0004358]
[1645903279303,0.21665032,39251.0,39245.0,0.23970309]
[1645903279605,0.21665032,39251.0,39246.0,0.00043579]
[1645903280566,0.21665032,39251.0,39241.0,0.004]
[1645903280765,0.21665032,39251.0,39240.0,0.23725889]
[1645903280966,0.20407856,39245.0,39241.0,0.21167889]
[1645903281665,0.20407856,39245.0,39240.0,0.21167889]
[1645903282066,0.20407856,39245.0,39241.0,0.00043556]
[1645903282970,0.20407856,39245.0,39239.0,0.20905101]
[1645903283167,0.28518,39251.0,39241.0,0.00043556]
[1645903283567,0.38518,39251.0,39241.0,0.00043556]
[1645903284205,0.38518,39251.0,39238.0,0.21167889]
[1645903284404,0.38518,39251.0,39244.0,0.00043554]
[1645903284604,0.35358414,39250.0,39244.0,0.00043554]
[1645903285210,0.17739046,39249.0,39244.0,0.00043554]
[1645903285409,0.17739046,39249.0,39242.0,0.23653698]
[1645903285706,0.05,39248.0,39245.0,0.00043553]
[1645903286305,0.001,39250.0,39245.0,0.00043553]
[1645903286606,0.001,39250.0,39242.0,0.23653698]
[1645903286806,0.63746456,39251.0,39246.0,0.00042883]
[1645903287005,0.28518,39251.0,39246.0,0.00042883]
[1645903287205,0.63746456,39251.0,39246.0,0.00042883]
[1645903287657,0.63846456,39251.0,39246.0,0.00042883]
[1645903287859,0.63846456,39251.0,39242.0,0.23653698]
[1645903288061,0.63846456,39251.0,39246.0,0.00042883]
[1645903288258,0.73846456,39251.0,39246.0,0.00042883]
[1645903288860,0.73746456,39251.0,39246.0,0.00042883]
[1645903289058,0.73746456,39251.0,39242.0,0.23653698]
[1645903289059,0.38518,39251.0,39242.0,0.23653698]
[1645903289259,0.35228456,39250.0,39246.0,0.00042883]
[1645903289462,0.38518,39251.0,39246.0,0.00042883]
[1645903290261,0.38518,39251.0,39242.0,0.23653698]
[1645903290459,0.38518,39251.0,39246.0,0.00024171]
[1645903291264,0.73746456,39251.0,39246.0,0.00024171]
[1645903291505,0.38518,39251.0,39242.0,0.23653698]
[1645903291706,0.35228456,39250.0,39246.0,0.00024153]
[1645903291909,0.38618,39251.0,39246.0,0.00024153]
[1645903292308,0.38584763,39251.0,39246.0,0.00024153]
[1645903292607,0.60100399,39251.0,39242.0,0.23653698]
[1645903292907,0.35228456,39250.0,39246.0,0.00040974]
[1645903293107,0.38484763,39251.0,39246.0,0.00040974]
[1645903293316,0.73713219,39251.0,39246.0,0.00040974]
[1645903293510,0.95228855,39251.0,39246.0,0.00040974]
[1645903293709,0.001,39250.0,39246.0,0.00040974]
[1645903293911,0.001,39250.0,39242.0,0.23653698]
[1645903294115,0.001,39250.0,39246.0,0.00041942]
[1645903294812,0.38484763,39251.0,39246.0,0.00041942]
[1645903295012,0.38484763,39251.0,39242.0,0.23653698]
[1645903295262,0.38484763,39251.0,39246.0,0.00041942]
[1645903295662,0.38584763,39251.0,39246.0,0.00041942]
[1645903296265,0.38584763,39251.0,39242.0,0.23653698]
[1645903296465,0.38584763,39251.0,39246.0,0.00041942]
[1645903296664,0.33618,39251.0,39246.0,0.00041942]
[1645903296865,0.33518,39251.0,39246.0,0.00041942]
[1645903297465,0.33518,39251.0,39242.0,0.23653698]
[1645903297666,0.35228456,39250.0,39246.0,0.00041007]
[1645903297872,0.55133636,39251.0,39246.0,0.00041007]
[1645903298068,0.33618,39251.0,39246.0,0.00041007]
[1645903298666,0.33618,39251.0,39242.0,0.23653698]
[1645903298909,0.35228456,39250.0,39246.0,0.00041007]
[1645903299108,0.33518,39251.0,39246.0,0.00041007]
[1645903299709,0.001,39250.0,39246.0,0.00041007]
[1645903299910,0.001,39250.0,39242.0,0.23653698]
[1645903300211,0.001,39250.0,39246.0,0.00041007]
[1645903300212,0.23641267,39249.0,39246.0,0.00041007]
[1645903300609,0.05,39248.0,39246.0,0.00041007]
[1645903300810,0.40328456,39250.0,39246.0,0.00041007]
[1645903300811,0.35328456,39250.0,39246.0,0.00041007]
[1645903301310,0.35328456,39250.0,39246.0,0.0004107]
[1645903301511,0.35228456,39250.0,39246.0,0.0004107]
[1645903301810,0.17449103,39249.0,39246.0,0.0004107]
[1645903302410,0.17449103,39249.0,39242.0,0.23653698]
[1645903302656,0.17449103,39249.0,39246.0,0.0004107]
[1645903303453,0.17449103,39249.0,39242.0,0.23653698]
[1645903303662,0.17549103,39249.0,39246.0,0.0004107]
[1645903304254,0.001,39249.0,39246.0,0.0004107]
[1645903304655,0.001,39249.0,39242.0,0.23653698]
[1645903304857,0.35228456,39250.0,39246.0,0.00041066]
[1645903305056,0.85976035,39251.0,39246.0,0.00041066]
[1645903305256,0.68746456,39251.0,39246.0,0.00041066]
[1645903305658,0.67846456,39251.0,39246.0,0.00041066]
[1645903305859,0.67846456,39251.0,39242.0,0.23653698]
[1645903306261,0.67846456,39251.0,39246.0,0.00041066]
[1645903307009,0.67746456,39251.0,39246.0,0.00041066]
[1645903307205,0.72746456,39251.0,39242.0,0.23653698]
[1645903307405,0.89976188,39251.0,39246.0,0.00041066]
[1645903307605,0.54847732,39251.0,39246.0,0.00041066]
[1645903308006,0.72846456,39251.0,39246.0,0.00041066]
[1645903308406,0.90076188,39251.0,39242.0,0.23653698]
[1645903308609,0.90076188,39251.0,39246.0,0.00041066]
[1645903308809,0.89976188,39251.0,39246.0,0.00041066]
[1645903309210,0.21515636,39250.0,39246.0,0.00041066]